bitfinex-derivatives/quotes_SOLF0:USTF0_20250821
["timestamp","ask_amount","ask_price","bid_price","bid_amount"]
[1755800132432,3.09,181.16,181.15,0.04138221]
[1755800135033,3.65,181.16,181.07,1.5]
[1755800135234,3.07662358,181.13,181.04,1.54]
[1755800135441,3.09,181.12,181.04,1.54]
[1755800136235,0.04233815,181.1,181.04,1.54]
[1755800136437,3.13233815,181.1,181.06,1.54]
[1755800136838,0.04233815,181.1,181.07,1.54]
[1755800137037,0.04233815,181.1,181.07,5.5232]
[1755800137237,0.04233815,181.1,181.08,1.54]
[1755800137438,0.04233815,181.1,181.09,1.54]
[1755800137834,0.04233815,181.1,181.07,1.54]
[1755800138141,0.04233815,181.1,181.08,1.54]
[1755800139250,0.04233815,181.1,181.01,370.8]
[1755800139251,0.04233815,181.1,181.04,1.54]
[1755800142462,6.16662358,181.09,181.0,1.54]
[1755800143260,0.03925576,181.06,181.0,1.54]
[1755800143861,0.03925576,181.06,181.01,3.07662358]
[1755800144060,0.03925576,181.06,181.02,1.54]
[1755800144254,0.03925576,181.06,181.02,5.5247]
[1755800144454,0.03925576,181.06,181.04,1.54]
[1755800144656,0.03925576,181.06,181.05,1.54]
[1755800145364,0.03925576,181.06,181.05,7.064]
[1755800145760,3.07662358,181.15,181.09,1.5]
[1755800145959,6.16662358,181.17,181.09,1.5]
[1755800146460,3.09,181.16,181.07,3.07662358]
[1755800146662,3.09,181.16,181.06,1.5]
[1755800147253,3.09,181.16,181.08,5.5231]
[1755800147464,3.09,181.14,181.06,1.5]
[1755800147858,3.09,181.14,181.06,7.0235]
[1755800148456,3.09,181.14,181.06,1.5]
[1755800149162,3.09,181.14,181.07,1.5]
[1755800149966,3.09,181.14,181.08,5.5229]
[1755800150266,3.09,181.14,181.07,1.5]
[1755800150669,3.09,181.14,181.08,5.5229]
[1755800151056,3.09,181.18,181.09,1.5]
[1755800151259,3.09,181.18,181.1,3.07662358]
[1755800151563,3.09,181.18,181.11,7.0219]
[1755800151765,3.09,181.18,181.11,1.5]
[1755800152160,3.07662358,181.21,181.13,1.5]
[1755800152369,3.09,181.22,181.13,1.5]
[1755800152660,3.09,181.22,181.14,3.07662358]
[1755800153069,3.09,181.22,181.14,8.59782358]
[1755800153966,3.09,181.22,181.14,3.07662358]
[1755800154872,3.09,181.22,181.14,8.59782358]
[1755800155466,3.09,181.22,181.16,1.49]
[1755800155666,0.03506016,181.2,181.17,1.49]
[1755800155966,0.03506016,181.2,181.19,1.49]
[1755800156359,2.83,181.26,181.19,1.49]
[1755800161170,2.83,181.26,181.12,210.12255872]
[1755800161171,2.83,181.3,181.21,1.49]
[1755800161377,2.83,181.3,181.23,1.49]
[1755800169077,2.83,181.29,181.23,1.49]
[1755800169469,2.83,181.29,181.19,4.56662358]
[1755800170078,5.90662358,181.29,181.19,4.56662358]
[1755800170277,2.83,181.28,181.19,4.56662358]
[1755800171475,2.83,181.28,181.19,1.49]
[1755800171679,2.83,181.26,181.19,1.49]
[1755800176277,5.90662358,181.29,181.2,1.49]
[1755800176670,2.83,181.29,181.21,3.07662358]
[1755800176875,2.83,181.29,181.22,1.49]
[1755800178477,2.83,181.29,181.22,7.0088]
[1755800178684,2.83,181.29,181.22,5.5188]
[1755800178987,2.83,181.29,181.23,10.08512358]
[1755800179579,2.83,181.32,181.24,1.49]
[1755800180479,3.07662358,181.31,181.21,4.56662358]
[1755800180677,2.83,181.3,181.21,4.56662358]
[1755800181480,5.90662358,181.33,181.24,1.49]
[1755800181679,2.83,181.33,181.24,1.49]
[1755800181874,2.83,181.33,181.24,7.008]
[1755800182080,2.83,181.33,181.26,1.49]
[1755800188495,2.83,181.33,181.26,7.0074]
[1755800189694,6.02662358,181.37,181.28,1.48]
[1755800189895,3.07662358,181.37,181.28,1.48]
[1755800190096,2.95,181.36,181.28,1.48]
[1755800190492,2.95,181.4,181.31,3.07662358]
[1755800190698,6.02662358,181.4,181.3,1.48]
[1755800190900,2.95,181.39,181.3,1.48]
[1755800191291,2.95,181.39,181.31,8.59242358]
[1755800192000,2.95,181.39,181.31,3.07662358]
[1755800192587,2.95,181.39,181.31,8.59242358]
[1755800192794,2.95,181.39,181.31,3.07662358]
[1755800193493,2.95,181.39,181.3,1.48]
[1755800195102,3.07662358,181.38,181.3,1.48]
[1755800195300,2.95,181.37,181.3,1.48]
[1755800195700,2.95,181.35,181.26,1.48]
[1755800195902,2.95,181.35,181.27,5.5171]
[1755800196200,2.95,181.35,181.26,1.48]
[1755800196399,2.95,181.35,181.27,5.5173]
[1755800196700,2.95,181.35,181.26,1.48]
[1755800197399,2.95,181.35,181.26,6.9976]
[1755800197602,2.95,181.35,181.26,1.48]
[1755800199404,3.07662358,181.34,181.24,3.07662358]
[1755800199604,2.95,181.33,181.24,3.07662358]
[1755800199998,2.95,181.33,181.24,4.55662358]
[1755800200203,2.95,181.33,181.24,10.07462358]
[1755800200401,2.95,181.33,181.24,4.55662358]
[1755800201495,2.95,181.33,181.24,10.07462358]
[1755800202504,2.95,181.33,181.24,4.55662358]
[1755800203102,2.95,181.33,181.24,10.07462358]
[1755800203302,2.95,181.33,181.24,4.55662358]
[1755800203608,2.95,181.33,181.25,1.48]
[1755800204509,2.95,181.33,181.26,5.5174]
[1755800205207,2.95,181.33,181.25,6.9978]
[1755800207004,2.95,181.33,181.25,1.48]
[1755800209108,2.95,181.33,181.25,6.9977]
[1755800209404,2.95,181.33,181.25,1.48]
[1755800210112,2.95,181.33,181.26,5.5174]
[1755800210905,2.95,181.33,181.25,6.9978]
[1755800211102,2.95,181.33,181.25,1.48]
[1755800211506,3.07662358,181.33,181.25,1.48]
[1755800211710,2.95,181.32,181.25,1.48]
[1755800213006,2.95,181.32,181.25,6.9979]
[1755800214307,3.07662358,181.31,181.25,1.48]
[1755800214807,3.07662358,181.31,181.22,4.56272221]
[1755800214808,3.08,181.28,181.23,5.5185]
[1755800215014,3.08,181.28,181.22,1.49]
[1755800216315,3.08,181.28,181.2,135.68]
[1755800216316,3.07662358,181.27,181.2,135.68]
[1755800216516,3.08,181.26,181.2,135.68]
[1755800216912,3.07662358,181.25,181.18,1.49]
[1755800217107,3.08,181.24,181.18,1.49]
[1755800217725,3.08,181.24,181.16,375.26272221]
[1755800217916,3.08,181.24,181.16,376.2206]
[1755800218118,3.08,181.24,181.16,370.7]
[1755800218515,3.08,181.24,181.16,376.2206]
[1755800218816,3.08,181.24,181.16,370.7]
[1755800219617,3.08,181.24,181.17,1.49]
[1755800220918,3.07662358,181.29,181.18,1.49]
[1755800221118,3.08,181.28,181.19,3.07662358]
[1755800221315,3.08,181.28,181.2,7.0093]
[1755800222119,3.08,181.28,181.21,5.5191]
[1755800222516,3.07662358,181.31,181.23,5.5183]
[1755800222717,3.08,181.32,181.24,1.49]
[1755800222916,3.08,181.32,181.24,4.56662358]
[1755800223115,3.07662358,181.35,181.27,1.49]
[1755800223314,3.08,181.36,181.27,1.49]
[1755800223712,3.08,181.36,181.27,7.0071]
[1755800223917,3.08,181.36,181.27,1.49]
[1755800224722,3.08,181.36,181.28,5.517]
[1755800224920,3.08,181.36,181.29,1.49]
[1755800226322,3.08,181.36,181.29,7.0067]
[1755800226524,3.08,181.36,181.29,1.49]
[1755800229222,3.08,181.36,181.29,7.0066]
[1755800229525,3.08,181.41,181.33,1.49]
[1755800229916,3.08,181.41,181.34,3.07662358]
[1755800230326,3.08,181.41,181.29,140.24272221]
[1755800230327,3.08,181.45,181.37,7.0041]
[1755800230521,3.08,181.45,181.37,1.49]
[1755800231523,3.08,181.45,181.38,3.07662358]
[1755800231921,3.08,181.45,181.39,1.49]
[1755800233623,6.15662358,181.49,181.39,1.49]
[1755800234219,3.08,181.48,181.39,1.49]
[1755800234829,3.07662358,181.47,181.39,1.49]
[1755800235024,3.07662358,181.45,181.36,3.07662358]
[1755800235229,3.08,181.44,181.35,1.49]
[1755800235529,3.08,181.42,181.35,1.49]
[1755800236723,3.07662358,181.41,181.34,212.43497889]
[1755800236926,3.08,181.4,181.34,212.43497889]
[1755800237332,3.08,181.4,181.34,213.92497889]
[1755800238832,3.08,181.4,181.34,212.43497889]
[1755800240632,3.07662358,181.39,181.34,212.43497889]
[1755800240832,3.08,181.38,181.34,212.43497889]
[1755800241028,3.08,181.38,181.34,213.91497889]
[1755800241827,3.07662358,181.39,181.34,212.43497889]
[1755800242033,3.07662358,181.41,181.36,1.48]
[1755800242234,3.08,181.41,181.34,212.43497889]
[1755800242429,3.08,181.41,181.37,1.48]
[1755800242631,3.07662358,181.43,181.38,1.48]
[1755800242826,2.82,181.42,181.38,1.48]
[1755800244134,5.89662358,181.41,181.34,212.43497889]
[1755800246435,3.07662358,181.39,181.29,370.74]
[1755800246632,3.07662358,181.37,181.29,507.84]
[1755800246936,3.07662358,181.37,181.31,1.48]
[1755800248236,3.07662358,181.41,181.31,1.48]
[1755800248633,2.82,181.4,181.31,1.48]
[1755800249129,2.82,181.38,181.31,1.48]
[1755800250827,3.07662358,181.37,181.31,1.48]
[1755800253831,3.07662358,181.37,181.31,6.9961]
[1755800254036,2.82,181.38,181.31,1.48]
[1755800254238,3.07662358,181.44,181.31,1.48]
[1755800254239,5.89662358,181.41,181.31,3.07662358]
[1755800254539,5.89662358,181.41,181.32,6.9956]
[1755800254739,5.89662358,181.41,181.32,1.48]
[1755800255538,5.89662358,181.41,181.32,6.9956]
[1755800256639,5.89662358,181.41,181.33,5.5154]
[1755800256834,5.89662358,181.41,181.32,1.48]
[1755800257039,2.82,181.41,181.35,5.5147]
[1755800257239,2.82,181.41,181.35,137.1]
[1755800257642,2.82,181.41,181.35,142.6147]
[1755800258141,2.82,181.41,181.35,137.1]
[1755800258341,3.07662358,181.43,181.35,137.1]
[1755800258640,3.07662358,181.43,181.35,142.6147]
[1755800258840,3.07662358,181.43,181.35,137.1]
[1755800259342,2.82,181.42,181.35,137.1]
[1755800259539,3.07662358,181.41,181.35,137.1]
[1755800261140,3.07662358,181.41,181.35,135.62]
[1755800261443,2.82,181.39,181.35,135.62]
[1755800262138,2.82,181.39,181.35,137.1]
[1755800262539,3.07662358,181.41,181.35,137.1]
[1755800262844,5.89662358,181.41,181.35,137.1]
[1755800263439,2.82,181.44,181.35,135.62]
[1755800263740,3.07662358,181.43,181.36,1.48]
[1755800267146,2.82,181.42,181.35,135.62]
[1755800267337,3.07662358,181.41,181.35,135.62]
[1755800267645,2.82,181.39,181.35,135.62]
[1755800267846,2.82,181.39,181.35,1.48]
[1755800269140,2.82,181.39,181.36,1.48]
[1755800269447,5.89662358,181.41,181.32,135.6]
[1755800269642,2.82,181.41,181.37,1.48]
[1755800270640,3.07662358,181.45,181.36,1.48]
[1755800270842,2.82,181.46,181.39,3.07662358]
[1755800271147,2.82,181.46,181.4,1.48]
[1755800271349,5.89662358,181.49,181.4,1.48]
[1755800271642,2.82,181.49,181.4,1.48]
[1755800272239,2.82,181.49,181.42,1.48]
[1755800272438,2.82,181.53,181.44,1.48]
[1755800275545,3.07662358,181.5,181.39,140.18494599]
[1755800275747,2.95,181.49,181.41,1.48]
[1755800276548,2.95,181.49,181.41,6.993]
[1755800276749,3.07662358,181.48,181.41,1.48]
[1755800277746,2.95,181.47,181.41,1.48]
[1755800279449,2.95,181.47,181.41,6.993]
[1755800280052,2.95,181.47,181.41,1.48]
[1755800281055,2.95,181.47,181.39,5.5135]
[1755800281249,3.07662358,181.46,181.38,1.48]
[1755800281553,2.95,181.45,181.38,1.48]
[1755800281848,6.02662358,181.49,181.44,1.48]
[1755800282853,2.95,181.48,181.44,1.48]
[1755800283053,2.95,181.48,181.44,5.5121]
[1755800283256,6.02662358,181.51,181.45,1.48]
[1755800285558,6.02662358,181.51,181.42,3.07662358]
[1755800285759,2.95,181.5,181.42,4.55662358]
[1755800285952,2.95,181.5,181.43,5.5124]
[1755800286152,2.95,181.5,181.42,4.55662358]
[1755800286360,3.07662358,181.49,181.42,1.48]
[1755800286556,2.95,181.48,181.42,1.48]
[1755800287566,2.95,181.48,181.42,6.9927]
[1755800288058,2.95,181.48,181.4,3.07662358]
[1755800288262,6.02662358,181.53,181.43,1.48]
[1755800288664,2.95,181.59,181.49,1.48]
[1755800288963,2.95,181.56,181.49,1.48]
[1755800289165,2.95,181.56,181.47,5.5112]
[1755800289556,2.95,181.56,181.46,4.55662358]
[1755800289755,2.95,181.56,181.48,5.5107]
[1755800290171,2.95,181.56,181.46,4.55662358]
[1755800290366,2.95,181.56,181.49,5.5106]
[1755800290567,2.95,181.56,181.46,4.55662358]
[1755800291870,2.95,181.56,181.49,5.5106]
[1755800293072,2.95,181.56,181.5,5.5103]
[1755800293768,2.95,181.56,181.52,1.48]
[1755800293974,2.95,181.55,181.49,1.48]
[1755800294277,2.95,181.59,181.49,1.48]
[1755800294466,2.95,181.59,181.51,1.48]
[1755800294861,2.95,181.59,181.51,6.9899]
[1755800295171,2.95,181.59,181.51,1.48]
[1755800296272,2.95,181.59,181.51,6.99]
[1755800297164,2.95,181.59,181.51,1.48]
[1755800297774,2.95,181.59,181.52,5.5097]
[1755800298069,2.95,181.59,181.51,1.48]
[1755800298268,0.95883617,181.61,181.44,3.07662358]
[1755800298473,6.02662358,181.67,181.57,3.07662358]
[1755800298678,6.02662358,181.67,181.58,1.47]
[1755800298974,2.95,181.66,181.58,1.47]
[1755800299969,2.95,181.64,181.58,1.47]
[1755800300369,2.95,181.64,181.55,3.07662358]
[1755800300572,2.95,181.69,181.58,1.47]
[1755800300770,2.95,181.69,181.61,4.54662358]
[1755800302174,2.95,181.69,181.61,10.05352358]
[1755800302677,2.95,181.69,181.61,4.54662358]
[1755800304274,2.95,181.69,181.61,10.05352358]
[1755800304775,2.95,181.69,181.61,4.54662358]
[1755800306074,2.95,181.69,181.61,1.47]
[1755800306275,0.95833448,181.74,181.58,1.48]
[1755800306276,2.83,181.67,181.58,1.48]
[1755800306882,2.83,181.65,181.58,1.48]
[1755800308283,2.83,181.65,181.55,3.07662358]
[1755800308582,2.83,181.63,181.55,3.07662358]
[1755800309286,2.83,181.61,181.54,1.48]
[1755800311485,2.83,181.61,181.54,6.9889]
[1755800312876,2.83,181.61,181.54,1.48]
[1755800313284,2.83,181.61,181.54,6.9889]
[1755800313579,2.83,181.61,181.54,1.48]
[1755800313785,2.83,181.61,181.55,5.5087]
[1755800313986,2.83,181.61,181.54,1.48]
[1755800315183,2.83,181.61,181.54,6.989]
[1755800316183,2.83,181.61,181.55,5.5088]
[1755800316486,2.83,181.65,181.58,1.48]
[1755800316886,3.07662358,181.66,181.53,3.07662358]
[1755800316887,3.07662358,181.68,181.6,1.48]
[1755800317087,2.83,181.69,181.61,3.07662358]
[1755800318289,2.83,181.69,181.61,8.58342358]
[1755800319286,2.83,181.69,181.62,5.5067]
[1755800319490,2.83,181.69,181.62,6.9867]
[1755800321190,2.83,181.69,181.62,1.48]
[1755800322489,2.83,181.69,181.62,6.9866]
[1755800324881,2.83,181.69,181.62,1.48]
[1755800325487,2.83,181.69,181.62,6.9866]
[1755800325790,3.07662358,181.68,181.58,4.55662358]
[1755800326085,2.83,181.67,181.58,10.06432358]
[1755800326886,2.83,181.67,181.58,3.07662358]
[1755800327097,2.83,181.7,181.61,1.48]
[1755800327391,2.83,181.7,181.61,6.9868]
[1755800328189,2.83,181.7,181.61,1.48]
[1755800328392,2.83,181.7,181.62,3.07662358]
[1755800328591,2.83,181.7,181.63,1.48]
[1755800328887,2.83,181.7,181.63,6.9862]
[1755800329088,2.83,181.7,181.63,1.48]
[1755800329295,2.83,181.73,181.65,1.48]
[1755800329990,2.83,181.73,181.65,6.9856]
[1755800330392,2.83,181.73,181.65,1.48]
[1755800331087,2.83,181.71,181.62,1.48]
[1755800331784,2.83,181.71,181.62,6.9865]
[1755800331987,2.83,181.71,181.62,1.48]
[1755800334897,3.02,181.69,181.62,1.48]
[1755800335093,3.02,181.69,181.6,3.07662358]
[1755800335491,3.02,181.69,181.61,1.47]
[1755800339399,3.07662358,181.66,181.58,1.47]
[1755800339599,3.02,181.65,181.58,1.47]
[1755800343703,3.07662358,181.64,181.55,209.62326263]
[1755800344005,3.02,181.63,181.55,209.62326263]
[1755800344212,3.02,181.61,181.52,376.39494599]
[1755800344596,3.02,181.61,181.54,5.5091]
[1755800345107,12.35827035,181.71,181.52,376.39494599]
[1755800345108,6.09662358,181.64,181.56,5.5085]
[1755800345502,6.09662358,181.64,181.55,1.47]
[1755800345700,6.09662358,181.64,181.56,5.5084]
[1755800345899,3.02,181.64,181.55,3.07662358]
[1755800346207,3.02,181.64,181.58,5.5078]
[1755800346611,3.02,181.64,181.59,5.5076]
[1755800346904,3.07662358,181.67,181.59,1.47]
[1755800347410,3.02,181.63,181.59,1.47]
[1755800348311,3.02,181.63,181.59,6.9776]
[1755800349014,3.02,181.66,181.56,4.54662358]
[1755800349214,3.07662358,181.65,181.56,4.54662358]
[1755800349810,3.02,181.66,181.56,4.54662358]
[1755800350010,3.07662358,181.65,181.56,4.54662358]
[1755800350207,3.07662358,181.65,181.57,5.5081]
[1755800351009,6.09662358,181.66,181.58,5.5079]
[1755800351218,6.09662358,181.66,181.56,4.54662358]
[1755800351415,3.02,181.66,181.56,4.54662358]
[1755800351713,6.09662358,181.66,181.56,4.54662358]
[1755800351915,6.09662358,181.66,181.58,5.5079]
[1755800352310,6.09662358,181.66,181.56,4.54662358]
[1755800352813,6.09662358,181.66,181.57,1.47]
[1755800353006,3.02,181.66,181.57,1.47]
[1755800353620,3.02,181.66,181.58,5.5077]
[1755800353823,3.02,181.66,181.57,1.47]
[1755800354013,6.09662358,181.66,181.57,1.47]
[1755800354509,3.02,181.69,181.61,1.47]
[1755800354714,3.02,181.69,181.63,1.47]
[1755800355716,3.02,181.69,181.63,6.9762]
[1755800356110,3.02,181.69,181.63,1.47]
[1755800358223,3.02,181.69,181.63,6.9764]
[1755800358516,3.02,181.72,181.64,3.07662358]
[1755800358715,3.02,181.72,181.65,1.48]
[1755800360023,6.09662358,181.72,181.62,4.55662358]
[1755800360315,3.02,181.71,181.62,1.48]
[1755800361116,3.02,181.71,181.62,6.9866]
[1755800361315,3.02,181.71,181.62,1.48]
[1755800362220,3.02,181.69,181.59,9.15624157]
[1755800362919,2.97,181.67,181.59,1.48]
[1755800363517,2.97,181.65,181.59,1.48]
[1755800366120,2.97,181.65,181.56,6.07961799]
[1755800366417,3.07662358,181.71,181.54,4.59961799]
[1755800366418,2.97,181.61,181.54,4.59961799]
[1755800366923,2.97,181.61,181.55,1.48]
[1755800368018,2.97,181.61,181.53,211.68872159]
[1755800368817,2.97,181.59,181.52,1.48]
[1755800369018,2.97,181.57,181.5,4.59961799]
[1755800369215,2.97,181.57,181.49,4.59961799]
[1755800369614,2.97,181.57,181.51,1.48]
[1755800370821,2.97,181.6,181.54,3.07662358]
[1755800371723,2.97,181.6,181.54,8.58552358]
[1755800372426,3.07662358,181.64,181.54,3.07662358]
[1755800372620,2.97,181.63,181.54,4.55662358]
[1755800372820,2.97,181.63,181.54,10.06552358]
[1755800373021,2.97,181.63,181.54,4.55662358]
[1755800373525,2.97,181.63,181.54,10.06552358]
[1755800373824,2.97,181.63,181.54,4.55662358]
[1755800374124,3.07662358,181.6,181.51,1.48]
[1755800374326,2.97,181.59,181.51,1.48]
[1755800378528,2.97,181.59,181.51,6.99]
[1755800378826,2.97,181.59,181.51,1.48]
[1755800379133,2.97,181.59,181.52,5.5097]
[1755800379535,6.04662358,181.62,181.53,1.48]
[1755800379730,6.04662358,181.62,181.53,6.9894]
[1755800380037,6.04662358,181.62,181.53,1.48]
[1755800381537,6.04662358,181.62,181.53,6.9894]
[1755800382831,3.07662358,181.62,181.53,6.9894]
[1755800383038,2.97,181.61,181.53,6.9894]
[1755800383233,2.97,181.61,181.53,1.48]
[1755800383632,3.07662358,181.6,181.5,3.07662358]
[1755800383840,2.97,181.59,181.49,14.66664157]
[1755800384337,2.97,181.59,181.5,5.5103]
[1755800384740,2.97,181.59,181.49,4.55662358]
[1755800385437,6.18776451,181.65,181.49,1.48]
[1755800385438,2.97,181.57,181.49,1.48]
[1755800388146,2.97,181.57,181.49,6.9906]
[1755800388342,2.97,181.57,181.49,1.48]
[1755800388639,3.07662358,181.6,181.5,1.48]
[1755800388840,2.97,181.61,181.52,1.48]
[1755800390045,2.97,181.61,181.53,5.5092]
[1755800390645,2.97,181.61,181.54,1.48]
[1755800390949,2.97,181.61,181.55,0.03609623]
[1755800391144,2.97,181.64,181.58,1.48]
[1755800391644,2.97,181.64,181.55,8.58532358]
[1755800391847,2.97,181.64,181.55,10.06532358]
[1755800393142,2.97,181.64,181.55,1.48]
[1755800395644,2.97,181.64,181.56,3.07662358]
[1755800395849,2.97,181.64,181.57,1.48]
[1755800396751,2.97,181.64,181.57,6.9882]
[1755800397146,5.88662358,181.67,181.57,1.48]
[1755800397346,5.88662358,181.67,181.59,5.5076]
[1755800397653,2.81,181.67,181.6,1.48]
[1755800397847,2.81,181.67,181.6,8.58372358]
[1755800398058,2.81,181.67,181.61,1.48]
[1755800398949,5.88662358,181.67,181.58,4.55662358]
[1755800399149,2.81,181.66,181.58,4.55662358]
[1755800399747,2.81,181.66,181.58,1.48]
[1755800400345,2.81,181.64,181.54,7.67624157]
[1755800400551,2.81,181.64,181.55,1.48]
[1755800402451,2.81,181.62,181.55,1.48]
[1755800406459,2.81,181.62,181.55,6.9888]
[1755800407064,2.81,181.62,181.55,1.48]
[1755800409560,3.07662358,181.65,181.55,1.48]
[1755800409861,3.07662358,181.65,181.57,1.48]
[1755800409862,2.81,181.65,181.57,1.48]
[1755800410066,2.81,181.64,181.54,4.55662358]
[1755800410257,2.81,181.62,181.54,1.48]
[1755800410463,2.81,181.6,181.54,1.48]
[1755800411365,3.07662358,181.63,181.54,6.9891]
[1755800411566,5.88662358,181.63,181.54,6.9891]
[1755800412262,2.81,181.63,181.55,3.07662358]
[1755800412471,2.81,181.63,181.56,1.48]
[1755800413561,2.81,181.63,181.57,3.07662358]
[1755800413767,2.81,181.63,181.59,1.48]
[1755800415564,2.81,181.65,181.55,4.55662358]
[1755800416266,2.81,181.63,181.55,1.48]
[1755800417167,2.81,181.63,181.52,4.59961799]
[1755800417368,2.81,181.61,181.52,7.67624157]
[1755800417871,2.81,181.61,181.52,4.59961799]
[1755800418267,2.81,181.61,181.52,10.10931799]
[1755800418462,2.81,181.61,181.52,4.59961799]
[1755800418661,2.81,181.61,181.52,6.07961799]
[1755800418962,2.81,181.61,181.53,1.48]
[1755800419769,2.81,181.59,181.53,1.48]
[1755800420461,2.81,181.59,181.5,4.59961799]
[1755800420870,2.81,181.63,181.55,1.48]
[1755800423371,2.81,181.63,181.55,6.9887]
[1755800423667,2.81,181.63,181.55,1.48]
[1755800423972,2.81,181.63,181.56,5.5083]
[1755800424672,2.81,181.63,181.55,6.9887]
[1755800424972,2.81,181.63,181.55,1.48]
[1755800426376,3.07662358,181.62,181.55,1.48]
[1755800426580,2.86,181.61,181.55,1.48]
[1755800428374,2.86,181.61,181.55,6.9888]
[1755800428777,6.18776451,181.66,181.56,4.55662358]
[1755800428982,15.66027677,181.69,181.56,4.55662358]
[1755800428983,6.37863,181.69,181.63,1.48]
[1755800429183,12.56639451,181.69,181.63,1.48]
[1755800429370,2.86,181.67,181.63,1.48]
[1755800429680,2.86,181.67,181.64,4.89467001]
[1755800429882,2.86,181.67,181.65,4.89467001]
[1755800430176,12.56639451,181.69,181.66,4.89467001]
[1755800430177,3.07662358,181.68,181.66,4.89467001]
[1755800430378,3.07662358,181.68,181.67,4.89467001]
[1755800430583,5.93662358,181.68,181.67,4.89467001]
[1755800431076,5.93662358,181.68,181.67,4.89163604]
[1755800431882,5.93662358,181.68,181.67,4.8917568]
[1755800432177,2.86,181.68,181.67,4.8917568]
[1755800434484,5.93662358,181.68,181.67,4.8917568]
[1755800438995,6.37863,181.69,181.67,4.8917568]
[1755800439189,9.23863,181.69,181.68,4.8917568]
[1755800439790,6.37863,181.69,181.68,4.8917568]
[1755800440593,6.37863,181.69,181.68,4.89473878]
[1755800441193,9.23863,181.69,181.68,4.89473878]
[1755800441392,6.37863,181.69,181.68,4.89473878]
[1755800443700,6.37863,181.69,181.68,6.37473878]
[1755800443898,6.37863,181.69,181.68,4.89473878]
[1755800444300,9.23863,181.69,181.68,4.89473878]
[1755800444696,6.37863,181.69,181.68,4.89473878]
[1755800445200,6.37863,181.69,181.68,6.37473878]
[1755800446102,6.37863,181.69,181.68,4.89473878]
[1755800447196,9.23863,181.69,181.68,4.89473878]
[1755800449702,9.23863,181.69,181.62,1.48]
[1755800449902,12.31525358,181.69,181.63,4.88718971]
[1755800450204,9.45525358,181.69,181.62,1.48]
[1755800450418,2.86,181.67,181.63,4.88727758]
[1755800450705,2.86,181.66,181.64,4.88727758]
[1755800450906,2.86,181.66,181.65,4.88727758]
[1755800451499,3.07662358,181.67,181.65,4.88727758]
[1755800451811,3.07662358,181.67,181.66,4.88727758]
[1755800454607,6.07662358,181.67,181.66,4.88727758]
[1755800455909,6.37863,181.69,181.68,1.48]
[1755800456107,6.37863,181.69,181.68,6.36727758]
[1755800457709,6.37863,181.69,181.68,4.88727758]
[1755800459309,6.37863,181.69,181.68,4.9081217]
[1755800459710,6.37863,181.69,181.68,4.90741873]
[1755800461420,9.37863,181.69,181.68,4.90741873]
[1755800462513,12.45525358,181.69,181.68,2.66686812]